bitfinex/quotes_BTCUSD_20211001
["timestamp","ask_amount","ask_price","bid_price","bid_amount"]
[1633105352754,0.5,47313.0,47312.0,0.12975008]
[1633105353555,0.5,47313.0,47312.0,0.00126008]
[1633105355758,0.5,47313.0,47312.0,0.09141776]
[1633105358161,0.5,47313.0,47312.0,0.31461776]
[1633105358561,0.5,47313.0,47312.0,0.09141776]
[1633105358963,0.5,47313.0,47312.0,0.00126008]
[1633105359961,0.5,47313.0,47312.0,0.09459852]
[1633105362360,0.5,47313.0,47312.0,0.00126008]
[1633105363160,0.5,47313.0,47312.0,0.08985835]
[1633105364762,0.5,47313.0,47312.0,0.40696035]
[1633105366566,0.5,47313.0,47312.0,0.08985835]
[1633105379678,0.5,47313.0,47312.0,0.08973864]
[1633105382283,0.5,47313.0,47312.0,0.15581611]
[1633105383079,0.5,47313.0,47312.0,0.08973864]
[1633105383480,0.5,47313.0,47312.0,0.15582466]
[1633105383681,0.06125941,47322.0,47321.0,0.12210178]
[1633105383882,0.06126022,47324.0,47322.0,0.18174078]
[1633105384085,0.06126009,47325.0,47323.0,0.35380257]
[1633105384280,0.0186,47328.0,47323.0,0.35380257]
[1633105384281,0.06125677,47326.0,47323.0,0.35380257]
[1633105384484,0.00018112,47324.0,47323.0,0.35380257]
[1633105384681,0.00018112,47324.0,47323.0,0.62056813]
[1633105385082,0.00018112,47324.0,47323.0,0.93759513]
[1633105385685,0.00018112,47324.0,47323.0,0.93739513]
[1633105385882,0.00018112,47324.0,47323.0,0.62036813]
[1633105386083,0.00018112,47324.0,47323.0,0.93740013]
[1633105390148,0.00018112,47324.0,47323.0,0.68379756]
[1633105390549,0.00018112,47324.0,47323.0,0.28105994]
[1633105391348,0.00018112,47324.0,47323.0,0.57373502]
[1633105393353,0.00018112,47324.0,47323.0,0.56996906]
[1633105394753,0.00018112,47324.0,47323.0,0.27729398]
[1633105394954,0.0186,47328.0,47323.0,0.27729398]
[1633105395153,0.0186,47328.0,47326.0,0.317013]
[1633105395956,0.01835495,47328.0,47326.0,0.317013]
[1633105396956,0.01835495,47328.0,47325.0,0.21134142]
[1633105399357,0.01835495,47328.0,47326.0,0.00179323]
[1633105400761,0.01835495,47328.0,47327.0,0.31827891]
[1633105401362,1.04302359,47332.0,47327.0,0.61692926]
[1633105401561,0.07971566,47342.0,47331.0,1.30128473]
[1633105401762,0.06111248,47345.0,47337.0,0.316915]
[1633105401961,0.57971064,47347.0,47342.0,0.23248466]
[1633105402162,0.13605,47346.0,47343.0,0.19493532]
[1633105402360,0.13605,47346.0,47344.0,0.32545258]
[1633105402562,0.13605,47346.0,47345.0,0.26846692]
[1633105402762,0.0186,47347.0,47344.0,0.52199258]
[1633105403164,0.00025346,47345.0,47344.0,0.52199258]
[1633105403364,0.00025346,47345.0,47344.0,0.5232542]
[1633105403967,0.00025346,47345.0,47344.0,1.06943076]
[1633105404166,0.0004,47359.0,47353.0,0.11681872]
[1633105404167,0.06146139,47359.0,47353.0,0.11681872]
[1633105404366,0.13605,47355.0,47354.0,0.65824147]
[1633105404563,0.0004,47359.0,47358.0,0.00123943]
[1633105404763,0.0004,47359.0,47356.0,0.00122692]
[1633105404964,0.00056892,47359.0,47356.0,0.00122692]
[1633105405164,0.00056892,47359.0,47357.0,0.35247576]
[1633105405466,0.0004,47359.0,47358.0,0.34398483]
[1633105405864,0.00056892,47359.0,47358.0,0.34398483]
[1633105406064,0.00056892,47359.0,47358.0,0.34523494]
[1633105409668,0.00056892,47359.0,47358.0,0.00125011]
[1633105409866,0.00056892,47359.0,47358.0,0.30501787]
[1633105411267,0.00056892,47359.0,47358.0,0.00125011]
[1633105414073,0.0194,47371.0,47367.0,0.19892461]
[1633105414272,0.0194,47371.0,47368.0,0.36480871]
[1633105414474,0.0008,47369.0,47368.0,0.51021406]
[1633105414873,0.0008,47369.0,47368.0,0.72762506]
[1633105415074,0.0004,47370.0,47368.0,0.95256148]
[1633105415272,0.0004,47370.0,47369.0,0.56799663]
[1633105415477,0.0004,47373.0,47369.0,0.56799663]
[1633105415671,0.0001327,47370.0,47369.0,0.35058563]
[1633105415875,0.0001327,47370.0,47369.0,0.56799663]
[1633105416080,0.0001327,47370.0,47368.0,0.14584642]
[1633105416277,0.0001327,47370.0,47368.0,0.00173642]
[1633105416475,0.00012064,47369.0,47368.0,0.00173642]
[1633105416678,0.00012064,47369.0,47368.0,0.2991988]
[1633105416877,0.00012064,47369.0,47368.0,0.00173642]
[1633105418074,0.00012064,47369.0,47368.0,0.29705343]
[1633105418475,0.00012064,47369.0,47368.0,0.00173642]
[1633105418877,6.4e-07,47369.0,47368.0,0.55984755]
[1633105419077,0.00173007,47378.0,47368.0,0.55984755]
[1633105419078,0.0194,47377.0,47373.0,1.31807018]
[1633105419276,0.0194,47377.0,47376.0,1.001267]
[1633105419277,0.0008,47377.0,47376.0,1.001267]
[1633105419477,0.0008,47378.0,47376.0,1.38269513]
[1633105419778,0.0008,47378.0,47377.0,0.34951536]
[1633105419977,0.0008,47378.0,47377.0,0.00122871]
[1633105420177,0.0008,47381.0,47377.0,0.3372656]
[1633105420379,0.0008,47381.0,47380.0,0.0012769]
[1633105421579,0.0008,47381.0,47380.0,0.3012769]
[1633105421778,0.0008,47381.0,47380.0,0.42757073]
[1633105422179,0.0008,47381.0,47380.0,0.13062]
[1633105422880,0.0008,47381.0,47379.0,0.21106185]
[1633105423685,0.0186,47380.0,47379.0,0.21106185]
[1633105423882,0.01913007,47380.0,47379.0,0.14985056]
[1633105424284,0.0186,47380.0,47379.0,0.14985056]
[1633105425686,0.0186,47380.0,47379.0,0.15157115]
[1633105425883,0.09304026,47378.0,47372.0,0.20401745]
[1633105426084,0.09304026,47378.0,47369.0,0.21113104]
[1633105426085,0.07117903,47373.0,47369.0,0.21113104]
[1633105426290,0.07117903,47373.0,47362.0,0.31515479]
[1633105426291,0.02034981,47372.0,47362.0,0.31515479]
[1633105426583,0.0186,47372.0,47371.0,0.50006031]
[1633105426784,0.0186,47372.0,47371.0,6.031e-05]
[1633105426983,0.0186,47372.0,47371.0,0.63283904]
[1633105427382,0.0186,47372.0,47371.0,0.24667955]
[1633105427583,0.06995258,47373.0,47371.0,0.54667955]
[1633105427981,0.06995258,47373.0,47371.0,0.24667955]
[1633105428184,0.06995258,47373.0,47371.0,0.56337455]
[1633105428386,0.11051563,47372.0,47371.0,6.031e-05]
[1633105428585,0.11177837,47372.0,47371.0,6.031e-05]
[1633105429382,0.01986274,47372.0,47371.0,6.031e-05]
[1633105429586,0.51986274,47372.0,47371.0,6.031e-05]
[1633105430387,0.61816197,47372.0,47371.0,6.031e-05]
[1633105430785,0.52039281,47372.0,47371.0,6.031e-05]
[1633105430984,0.52039281,47372.0,47371.0,0.00135842]
[1633105430985,0.51986274,47372.0,47371.0,0.00135842]
[1633105432488,0.76920406,47372.0,47371.0,0.00135842]
[1633105432690,0.51986274,47372.0,47365.0,0.21117264]
[1633105432890,0.00128466,47366.0,47365.0,0.21117264]
[1633105433090,0.0186,47366.0,47365.0,0.21117264]
[1633105433287,0.0186,47366.0,47365.0,0.21124503]
[1633105433487,0.0186,47366.0,47365.0,0.76622942]
[1633105434890,0.0186,47366.0,47365.0,0.3950713]
[1633105435692,0.01677557,47366.0,47365.0,1.2450713]
[1633105435893,0.01677557,47366.0,47365.0,1.54439226]
[1633105436093,0.25656305,47372.0,47365.0,1.54439226]
[1633105436094,0.0186,47371.0,47365.0,1.54439226]
[1633105436292,0.0186,47371.0,47365.0,1.32698126]
[1633105436495,0.0186,47371.0,47365.0,0.47698126]
[1633105436894,0.0186,47371.0,47368.0,0.316726]
[1633105437964,0.0186,47371.0,47365.0,0.89927526]
[1633105438167,0.01980428,47371.0,47365.0,0.89927526]
[1633105438565,0.01980428,47371.0,47365.0,0.8173653]
[1633105438764,0.00120428,47371.0,47365.0,0.8173653]
[1633105438963,0.00120428,47371.0,47365.0,0.3950713]
[1633105439568,0.00120428,47371.0,47366.0,0.316743]
[1633105439765,0.56995258,47373.0,47366.0,0.316743]
[1633105440765,0.56995258,47373.0,47365.0,0.74501496]
[1633105440968,0.56995258,47373.0,47369.0,1.9989248]
[1633105440969,0.81958715,47373.0,47369.0,1.9989248]
[1633105441169,0.56995258,47373.0,47365.0,0.3950713]
[1633105441370,0.00127487,47366.0,47365.0,0.3950713]
[1633105441773,0.25741445,47372.0,47365.0,0.39379104]
[1633105441969,0.25869535,47372.0,47365.0,0.39379104]
[1633105442169,0.25869535,47372.0,47365.0,0.20996477]
[1633105442371,0.3,47369.0,47365.0,0.20996477]
[1633105442569,0.0186,47371.0,47365.0,0.20996477]
[1633105443369,0.0186,47371.0,47370.0,0.64797574]
[1633105443573,0.06995258,47373.0,47370.0,0.5353615]
[1633105443771,0.06995258,47373.0,47371.0,0.72918533]
[1633105443975,0.06995258,47373.0,47372.0,2.88067197]
[1633105444174,0.5,47380.0,47379.0,0.70440709]
[1633105444378,0.5,47380.0,47379.0,0.51881002]
[1633105444577,8.442e-05,47380.0,47379.0,1.11342018]
[1633105444778,8.442e-05,47380.0,47379.0,1.41992541]
[1633105444974,8.442e-05,47380.0,47379.0,1.08514092]
[1633105445173,8.442e-05,47380.0,47379.0,1.62003902]
[1633105446575,0.0012,47382.0,47380.0,0.8]
[1633105446775,0.0012,47382.0,47380.0,0.36535451]
[1633105446979,0.0012,47382.0,47380.0,0.58855451]
[1633105447776,0.0004,47381.0,47380.0,0.89471704]
[1633105447974,0.0008,47382.0,47381.0,0.9]
[1633105448175,0.0008,47382.0,47381.0,1.43066611]
[1633105448376,0.0008,47382.0,47381.0,0.44190638]
[1633105448978,0.0008,47382.0,47381.0,0.55456638]
[1633105449779,0.01013831,47389.0,47382.0,0.217411]
[1633105450083,0.01013831,47389.0,47386.0,0.21103222]
[1633105450281,0.00120668,47387.0,47386.0,0.21103222]
[1633105450481,0.13787116,47387.0,47386.0,0.21103222]
[1633105450880,0.13666448,47387.0,47386.0,0.21103222]
[1633105451479,0.13166448,47387.0,47386.0,0.21103222]
[1633105451681,8.441e-05,47387.0,47386.0,0.21103222]
[1633105455881,0.00014713,47387.0,47386.0,0.21103222]
[1633105460188,0.00014713,47387.0,47386.0,0.5785335]
[1633105463990,0.00014713,47387.0,47386.0,0.51733635]
[1633105464988,0.00014713,47387.0,47386.0,0.83388335]
[1633105465592,7.13e-06,47387.0,47386.0,1.91592424]
[1633105465791,7.13e-06,47387.0,47386.0,2.02670424]
[1633105466191,7.13e-06,47387.0,47386.0,1.71771761]
[1633105466592,0.01013831,47389.0,47386.0,1.71771761]
[1633105466792,0.01013831,47389.0,47387.0,0.217421]
[1633105467393,0.01013831,47389.0,47387.0,0.639486]
[1633105470201,0.01013831,47389.0,47388.0,2.1]
[1633105470399,0.01013831,47389.0,47388.0,2.317421]
[1633105470999,0.01013831,47389.0,47388.0,0.217421]
[1633105472000,0.01013831,47389.0,47388.0,1.167421]
[1633105472599,0.01013831,47389.0,47388.0,0.217421]
[1633105473002,0.01013831,47389.0,47388.0,1.167421]
[1633105474604,0.01013831,47389.0,47388.0,0.217421]
[1633105476006,0.01013831,47389.0,47388.0,0.917421]
[1633105477804,0.01013831,47389.0,47388.0,0.217421]
[1633105478007,0.01013831,47389.0,47388.0,0.967421]
[1633105478207,0.01013831,47389.0,47388.0,0.217421]
[1633105480211,0.01013831,47389.0,47387.0,0.422065]
[1633105480410,0.01013831,47389.0,47388.0,0.217421]
[1633105480814,0.01013831,47389.0,47387.0,0.422065]
[1633105481018,0.0016,47395.0,47391.0,0.22091088]
[1633105481212,0.0016,47395.0,47393.0,0.40123009]
[1633105481413,0.0016,47395.0,47393.0,0.00123009]
[1633105481614,0.0016,47395.0,47391.0,0.74839327]
[1633105481812,0.0016,47395.0,47391.0,0.74967191]
[1633105482012,6.029e-05,47392.0,47391.0,0.74967191]
[1633105482212,6.029e-05,47392.0,47391.0,0.96709291]
[1633105484019,6.029e-05,47392.0,47391.0,0.74839327]
[1633105485879,6.029e-05,47392.0,47391.0,0.52748239]
[1633105486821,6.029e-05,47392.0,47391.0,0.76966742]
[1633105487021,0.00082455,47396.0,47392.0,0.3]
[1633105487223,0.00082455,47396.0,47391.0,0.45315242]
[1633105488023,0.00082455,47396.0,47394.0,0.3452838]
[1633105488226,0.00082455,47396.0,47393.0,0.527492]
[1633105488423,0.131049,47395.0,47393.0,0.527492]
[1633105488625,0.00082455,47396.0,47393.0,0.527492]
[1633105488894,0.131049,47395.0,47393.0,0.527492]
[1633105489022,0.00082455,47396.0,47393.0,0.527492]
[1633105489221,0.131049,47395.0,47393.0,0.527492]
[1633105489421,0.00082455,47396.0,47393.0,0.316498]
[1633105489624,0.00082455,47396.0,47390.0,0.06995258]
[1633105489625,0.131049,47395.0,47390.0,0.06995258]
[1633105491428,0.131049,47395.0,47391.0,0.21102044]
[1633105491825,0.131049,47395.0,47390.0,0.06995258]
[1633105491826,0.00122279,47392.0,47390.0,0.06995258]
[1633105492031,0.15093391,47391.0,47390.0,0.06995258]
[1633105492227,0.46371297,47391.0,47390.0,0.06995258]
[1633105492628,0.54110609,47391.0,47390.0,0.06995258]
[1633105493033,0.22832703,47391.0,47390.0,0.06995258]
[1633105496428,0.09727803,47391.0,47390.0,0.06995258]
[1633105497898,0.22832703,47391.0,47390.0,0.06995258]
[1633105499530,0.15093391,47391.0,47390.0,0.06995258]
[1633105500129,0.149649,47391.0,47390.0,0.06995258]
[1633105503137,0.01987572,47391.0,47390.0,0.06995258]
[1633105503333,0.15092472,47391.0,47390.0,0.06995258]
[1633105503941,0.15092472,47391.0,47390.0,0.02089349]
[1633105504938,0.15092472,47391.0,47390.0,0.0138495]
[1633105505539,0.14882472,47391.0,47390.0,0.0138495]
[1633105508001,0.14888544,47391.0,47390.0,0.0138495]
[1633105508999,0.12512971,47391.0,47390.0,0.0138495]
[1633105509200,0.12512971,47391.0,47390.0,0.01456956]
[1633105509401,0.14372971,47391.0,47390.0,0.01456956]
[1633105510811,0.3931863,47391.0,47390.0,0.01456956]
[1633105511013,0.0138495,47390.0,47374.0,1.0929]
[1633105511214,0.50127405,47377.0,47374.0,1.0929]
[1633105511413,0.30792739,47376.0,47367.0,0.05996044]
[1633105511615,0.30792739,47376.0,47366.0,0.06047706]
[1633105511813,0.30792739,47376.0,47369.0,0.24233416]
[1633105513216,0.30792739,47376.0,47374.0,1.82688392]
[1633105518619,0.30792739,47376.0,47374.0,1.92488052]
[1633105520421,0.30792739,47376.0,47374.0,1.82688392]
[1633105522222,0.00122537,47375.0,47374.0,1.82688392]
[1633105522420,0.01982537,47375.0,47374.0,1.82688392]
[1633105522624,0.01982537,47375.0,47374.0,1.82707691]
[1633105523026,0.01982537,47375.0,47374.0,0.00019299]
[1633105523322,0.38709033,47375.0,47374.0,0.00019299]
[1633105524922,0.14043947,47375.0,47374.0,0.00019299]
[1633105525132,0.123822,47375.0,47374.0,0.00096303]
[1633105525324,0.0186,47384.0,47380.0,0.20952932]
[1633105525525,0.123822,47383.0,47380.0,0.20952932]
[1633105526324,0.0186,47384.0,47380.0,0.20952932]
[1633105526726,0.5,47387.0,47383.0,1.05008442]
[1633105526924,0.04701906,47390.0,47383.0,1.05008442]
[1633105526925,0.02841906,47390.0,47383.0,1.05008442]
[1633105527126,0.02841906,47390.0,47388.0,0.193681]
[1633105527323,0.123822,47389.0,47388.0,0.193681]
[1633105527524,0.02841906,47390.0,47388.0,0.193681]
[1633105527727,0.02841906,47390.0,47386.0,0.07687432]
[1633105527924,0.02841906,47390.0,47385.0,6.029e-05]
[1633105528125,0.02841906,47390.0,47385.0,0.31663529]
[1633105528328,0.02841906,47390.0,47385.0,6.029e-05]
[1633105528727,0.02841906,47390.0,47386.0,0.23793704]
[1633105529126,0.02841906,47390.0,47386.0,0.316569]
[1633105529326,0.02841906,47390.0,47385.0,6.029e-05]
[1633105530127,0.02841906,47390.0,47386.0,0.23435295]
[1633105533728,0.02841906,47390.0,47386.0,0.55093095]
[1633105534531,0.02841906,47390.0,47386.0,0.316578]
[1633105534934,0.02841906,47390.0,47385.0,6.029e-05]
[1633105535135,0.02841906,47390.0,47388.0,0.00077004]
[1633105535331,0.123822,47389.0,47388.0,1.10077004]
[1633105535535,0.02841906,47390.0,47388.0,1.32286197]
[1633105535733,0.02841906,47390.0,47388.0,0.22286197]
[1633105536334,0.02841906,47390.0,47389.0,1.41429074]
[1633105536533,0.02841906,47390.0,47389.0,0.31482084]
[1633105536735,0.02841906,47390.0,47389.0,0.31429074]
[1633105537337,0.02841906,47390.0,47389.0,0.53749074]
[1633105537535,0.02841906,47390.0,47389.0,0.31554678]
[1633105537738,0.02841906,47390.0,47389.0,0.31607688]
[1633105538138,0.02841906,47390.0,47389.0,0.31482084]
[1633105538334,0.02841906,47390.0,47389.0,0.31429074]
[1633105540139,0.02841906,47390.0,47389.0,0.53290682]
[1633105541540,0.02841906,47390.0,47389.0,0.31429074]
[1633105542140,0.02841906,47390.0,47389.0,1.16429074]
[1633105542340,0.02841906,47390.0,47389.0,0.31429074]
[1633105542742,0.02841906,47390.0,47389.0,0.54853996]
[1633105543007,0.02841906,47390.0,47389.0,0.77173996]
[1633105543208,0.02841906,47390.0,47389.0,0.54983941]
[1633105543413,0.02841906,47390.0,47389.0,0.86692251]
[1633105543806,0.02841906,47390.0,47389.0,0.86639241]
[1633105544411,0.02841906,47390.0,47389.0,1.08959241]
[1633105544812,0.02841906,47390.0,47389.0,0.86692251]
[1633105545013,0.02841906,47390.0,47389.0,0.86639241]
[1633105545212,0.02841906,47390.0,47389.0,0.86716245]
[1633105545613,0.02841906,47390.0,47389.0,1.09036245]
[1633105545815,0.00729414,47390.0,47389.0,1.62039611]
[1633105546212,0.00729414,47390.0,47389.0,1.30833055]
[1633105548216,0.00729414,47390.0,47389.0,1.30780045]
[1633105548819,0.00729414,47390.0,47389.0,1.30833055]
[1633105549014,0.00729414,47390.0,47389.0,1.30780045]
[1633105549616,0.00729414,47390.0,47389.0,1.30320045]
[1633105550218,0.00729414,47390.0,47389.0,1.75320045]
[1633105550418,0.00729414,47390.0,47389.0,1.30320045]
[1633105550819,0.00082455,47396.0,47390.0,0.00729414]
[1633105551023,0.00082455,47396.0,47395.0,1.50121968]
[1633105551417,0.00082455,47396.0,47395.0,0.00121968]
[1633105552017,0.00082455,47396.0,47395.0,1.04364691]
[1633105552418,0.00082455,47396.0,47395.0,0.31684691]
[1633105553019,0.00082455,47396.0,47395.0,0.22441968]
[1633105553217,0.00082455,47396.0,47395.0,0.00121968]
[1633105553417,0.00082455,47396.0,47395.0,8.703e-05]
[1633105553617,0.00082455,47396.0,47394.0,0.1784037]
[1633105554418,0.123822,47395.0,47391.0,0.210991]
[1633105554617,0.00082455,47396.0,47391.0,0.210991]
[1633105555218,0.00082455,47396.0,47394.0,0.00077004]
[1633105557219,0.123822,47395.0,47394.0,0.00077004]
[1633105558422,0.00204473,47396.0,47394.0,0.00077004]
[1633105560422,0.00082455,47396.0,47395.0,2.09801154]
[1633105560626,0.00082455,47396.0,47395.0,0.1992119]
[1633105561021,0.00082455,47396.0,47395.0,0.7492119]
[1633105561221,0.00082455,47396.0,47395.0,0.1992119]
[1633105561823,0.00082455,47396.0,47394.0,0.52826233]
[1633105563025,0.00082455,47396.0,47394.0,0.31728104]
[1633105565930,0.0012,47407.0,47405.0,0.97973806]
[1633105566132,0.0016,47415.0,47408.0,0.1802]
[1633105566333,1.14844029,47427.0,47423.0,0.12286388]
[1633105566532,0.2512,47431.0,47430.0,0.74834962]
[1633105566735,0.0012,47431.0,47430.0,0.83761642]
[1633105566931,0.0016,47434.0,47431.0,0.867438]
[1633105566932,0.0008,47434.0,47431.0,0.867438]
[1633105567130,0.0008,47434.0,47433.0,0.217438]
[1633105567330,0.093,47435.0,47434.0,0.217438]
[1633105567632,0.093,47435.0,47434.0,0.23847393]
[1633105567633,0.09351801,47435.0,47434.0,0.23847393]
[1633105567830,0.09351801,47435.0,47434.0,0.23900403]
[1633105568032,0.09351801,47435.0,47434.0,0.23778366]
[1633105568230,0.08851801,47435.0,47434.0,0.23725356]
[1633105569032,0.3880328,47435.0,47430.0,0.60157842]
[1633105569234,0.00123781,47431.0,47430.0,0.60157842]
[1633105569432,0.00170768,47431.0,47430.0,0.60157842]
[1633105569830,0.00180399,47431.0,47430.0,0.60157842]
[1633105570031,0.09978446,47431.0,47430.0,0.60157842]
[1633105570233,0.09854665,47431.0,47430.0,0.60157842]
[1633105571633,0.00125595,47433.0,47430.0,0.60157842]
[1633105572036,0.088,47435.0,47430.0,0.60157842]
[1633105572233,0.088,47435.0,47430.0,0.91783642]
[1633105572903,0.088,47435.0,47434.0,0.31671434]
[1633105573236,0.08923988,47435.0,47430.0,0.60157842]
[1633105574036,0.08423988,47435.0,47430.0,0.60157842]
[1633105574238,0.08423988,47435.0,47434.0,0.31885842]
[1633105574438,0.08423988,47435.0,47433.0,0.09012438]
[1633105574638,0.5012,47439.0,47433.0,0.09012438]
[1633105574639,0.3016,47441.0,47439.0,0.00249414]
[1633105574840,0.3016,47441.0,47439.0,0.24034927]
[1633105575039,0.0017084,47440.0,47439.0,0.24034927]
[1633105575238,0.0017084,47440.0,47439.0,0.20906278]
[1633105575638,0.0017084,47440.0,47439.0,0.7574277]
[1633105576239,0.0017084,47440.0,47439.0,0.5399897]
[1633105576837,0.2983084,47441.0,47439.0,0.5399897]
[1633105577238,0.2983084,47441.0,47440.0,0.21391361]
[1633105577438,0.3003084,47442.0,47440.0,0.21391361]
[1633105577838,0.3003084,47442.0,47439.0,0.5399897]
[1633105579239,0.3003084,47442.0,47440.0,0.217438]
[1633105580239,0.2953084,47442.0,47439.0,0.35592692]
[1633105580640,9.601e-05,47441.0,47439.0,0.35592692]
[1633105583445,0.07956559,47440.0,47439.0,0.35592692]
[1633105583646,9.601e-05,47441.0,47439.0,0.35592692]
[1633105583845,9.601e-05,47441.0,47434.0,0.00077004]
[1633105584645,9.601e-05,47441.0,47436.0,0.0712935]
[1633105584907,9.601e-05,47441.0,47439.0,0.27428292]
[1633105585245,9.601e-05,47441.0,47440.0,0.00077004]
[1633105586047,0.00138263,47441.0,47440.0,0.00077004]
[1633105586248,0.422852,47452.0,47440.0,0.22397004]
[1633105586448,0.0004,47464.0,47459.0,3.18867062]
[1633105586647,0.0684898,47472.0,47459.0,3.18867062]
[1633105586852,0.0014,47479.0,47476.0,12.2316331]
[1633105587047,0.63540001,47490.0,47476.0,12.2316331]
[1633105587048,0.1512,47485.0,47476.0,12.2316331]
[1633105587248,0.25283134,47491.0,47476.0,12.2316331]
[1633105587455,15.8714,47558.0,47489.0,0.003125]
[1633105587457,0.1956013,47505.0,47489.0,0.003125]
[1633105587650,0.0004,47521.0,47489.0,0.003125]
[1633105587915,0.99851169,47662.0,47518.0,0.315401]
[1633105587916,0.101,47540.0,47518.0,0.315401]
[1633105588046,0.1014,47555.0,47518.0,0.315401]
[1633105588249,0.001,47558.0,47518.0,0.315401]
[1633105588450,2.3212,47790.0,47518.0,0.315401]
[1633105588451,2.038,47572.0,47518.0,0.315401]
[1633105588655,2.3212,47790.0,47518.0,0.315401]
[1633105588656,0.14220132,47580.0,47555.0,0.5]
[1633105588851,0.536703,47589.0,47556.0,0.21005637]
[1633105589052,0.527132,47604.0,47556.0,0.21005637]
[1633105589053,0.84769135,47600.0,47556.0,0.21005637]
[1633105589258,0.0014,47608.0,47556.0,0.21005637]
[1633105589259,1.102334,47620.0,47556.0,0.21005637]
[1633105589464,0.03723733,47628.0,47556.0,0.21005637]
[1633105589652,0.001,47632.0,47608.0,1.42546437]
[1633105589653,0.0006,47632.0,47608.0,1.42546437]
[1633105589850,0.0012,47637.0,47608.0,1.42546437]
[1633105589851,0.0008,47643.0,47638.0,0.4383]
[1633105590054,0.00738581,47671.0,47638.0,0.4383]
[1633105590055,0.0104,47669.0,47656.0,0.419152]
[1633105590252,0.6775,47687.0,47656.0,0.419152]
[1633105590450,0.0008,47702.0,47656.0,0.419152]
[1633105590654,0.128308,47723.0,47656.0,0.419152]
[1633105590655,0.0152,47724.0,47656.0,0.419152]
[1633105590910,0.0016,47731.0,47656.0,0.419152]
[1633105590911,0.0008,47744.0,47656.0,0.419152]
[1633105591051,0.00547998,47991.0,47729.0,9.98]
[1633105591052,9.32393068,47753.0,47729.0,9.98]
[1633105591249,0.0016,47761.0,47760.0,0.1919574]
[1633105591452,0.0012,47776.0,47717.0,2.3019]
[1633105591453,0.00122835,47744.0,47717.0,2.3019]
[1633105591749,0.0008,47771.0,47687.0,8.9690127]
[1633105591750,0.0008,47771.0,47708.0,0.05546]
[1633105591751,0.33404401,47723.0,47708.0,0.05546]
[1633105591947,0.48753773,47687.0,47675.0,0.60256418]
[1633105592150,0.48753773,47687.0,47686.0,0.5]
[1633105592151,0.47056328,47687.0,47686.0,0.5]
[1633105592351,0.1492,47703.0,47687.0,0.13659598]
[1633105592552,0.14953577,47704.0,47703.0,0.16837609]
[1633105592749,0.00033577,47704.0,47703.0,0.15242673]
[1633105592947,0.09953577,47706.0,47703.0,0.07007537]
[1633105593149,0.03415237,47706.0,47704.0,0.2427909]
[1633105593349,0.31366478,47703.0,47697.0,0.00634907]
[1633105593551,0.00127388,47692.0,47690.0,0.12765388]
[1633105593750,0.01167515,47686.0,47680.0,0.04203]
[1633105593948,0.01,47671.0,47668.0,0.005]
[1633105594150,0.01,47671.0,47661.0,0.00128168]
[1633105594151,0.55,47670.0,47661.0,0.00128168]
[1633105594351,0.29541005,47676.0,47637.0,0.07926]
[1633105594352,0.26511004,47643.0,47637.0,0.07926]
[1633105594550,0.26511004,47643.0,47631.0,0.01]
[1633105594551,0.14390086,47635.0,47631.0,0.01]
[1633105594754,0.14490086,47635.0,47634.0,0.71568882]
[1633105594949,0.14490086,47635.0,47612.0,0.45004161]
[1633105594950,0.216264,47633.0,47613.0,0.50378514]
[1633105595152,0.56178796,47634.0,47611.0,3.79345857]
[1633105595153,0.001,47614.0,47611.0,3.79345857]
[1633105595351,0.09919128,47613.0,47595.0,0.3554596]
[1633105595550,0.09350227,47607.0,47595.0,0.3554596]
[1633105595753,0.00052987,47606.0,47603.0,0.005]
[1633105595950,0.00052987,47606.0,47595.0,0.3554596]
[1633105595951,0.70958436,47637.0,47607.0,0.06385763]
[1633105596148,0.00123112,47631.0,47630.0,0.00127478]
[1633105596350,0.17784298,47637.0,47630.0,0.00127478]
[1633105596552,0.1,47648.0,47630.0,0.00127478]
[1633105596553,0.0168,47679.0,47641.0,0.0012886]
[1633105596755,0.5,47678.0,47655.0,0.0012865]
[1633105596950,0.73545328,47683.0,47682.0,0.00121583]
[1633105597154,7.181e-05,47705.0,47682.0,0.02553209]
[1633105597351,0.01,47709.0,47706.0,0.03415237]
[1633105597552,0.5,47742.0,47731.0,0.098849]
[1633105597758,0.01,47769.0,47758.0,0.05472413]
[1633105597759,0.5658395,47763.0,47758.0,0.05472413]
[1633105597954,0.0208,47783.0,47778.0,0.42]
[1633105597955,0.0204,47783.0,47778.0,0.42]
[1633105598152,0.001,47785.0,47778.0,0.42]
[1633105598153,3.22395758,47788.0,47787.0,0.29685955]
[1633105598351,1.0,47786.0,47763.0,0.35871304]
[1633105598552,0.00253772,47780.0,47747.0,0.0168]
[1633105598752,0.00253772,47780.0,47737.0,0.10067898]
[1633105598753,0.00253772,47780.0,47740.0,0.0012897]
[1633105598754,1.25,47777.0,47740.0,0.0012897]
[1633105598951,1.25,47777.0,47734.0,0.0465829]
[1633105598952,0.00064632,47748.0,47734.0,0.0465829]
[1633105599154,0.00125756,47759.0,47745.0,0.35018118]
[1633105599155,0.31829001,47754.0,47745.0,0.35018118]
[1633105599353,0.34967927,47759.0,47726.0,0.00125686]
[1633105599354,1.2,47744.0,47726.0,0.00125686]
[1633105599554,0.001,47727.0,47717.0,0.00126586]
[1633105599754,0.001,47718.0,47703.0,0.0168]
[1633105599955,0.3344249,47743.0,47717.0,0.00225307]
[1633105600154,0.10341901,47745.0,47717.0,0.00225307]
[1633105600155,0.19644091,47742.0,47740.0,0.00121671]
[1633105600359,0.153101,47741.0,47730.0,0.001]
[1633105600554,7.42e-06,47741.0,47740.0,0.00128282]
[1633105600754,9.01e-06,47745.0,47744.0,0.07000157]
[1633105600955,9.01e-06,47745.0,47744.0,0.28726457]
[1633105601155,9.01e-06,47745.0,47744.0,0.28779467]
[1633105601357,9.01e-06,47745.0,47744.0,0.74052606]
[1633105601555,0.92493969,47786.0,47745.0,0.04837918]
[1633105601757,1.72697629,47788.0,47769.0,0.00129233]
[1633105601956,5.24354268,47793.0,47788.0,0.19082763]
[1633105601957,5.15183072,47793.0,47788.0,0.19082763]
[1633105602156,5.15183072,47793.0,47789.0,2.60333797]
[1633105602157,3.38084523,47793.0,47789.0,2.60333797]
[1633105602354,1.58551597,47793.0,47792.0,0.00248389]
[1633105602556,0.0012,47794.0,47792.0,0.00248389]
[1633105602557,1.30533697,47803.0,47801.0,2.26632181]
[1633105602756,2.90449494,47814.0,47808.0,0.01385134]
[1633105603029,1.39506994,47814.0,47813.0,0.00123678]
[1633105603226,1.37506994,47814.0,47813.0,2.40251768]
[1633105603427,0.19929873,47812.0,47809.0,0.00790232]
[1633105603627,0.18301393,47804.0,47801.0,0.00122712]
[1633105603828,0.3309315,47813.0,47810.0,0.00125537]